bitfinex/quotes_SOLUSD_20250310
["timestamp","ask_amount","ask_price","bid_price","bid_amount"]
[1741633317485,20.25474639,116.95,116.88,76.32052121]
[1741633317672,76.32052121,116.93,116.88,76.32052121]
[1741633317891,1.60430017,116.94,116.89,78.32052121]
[1741633318201,226.68,116.96,116.94,2.0]
[1741633318384,226.68,116.96,116.95,78.32052121]
[1741633318584,226.68,116.96,116.95,86.87112121]
[1741633318776,226.68,116.96,116.95,165.80509321]
[1741633318978,0.03,116.99,116.98,2.28432314]
[1741633319197,0.03,116.99,116.98,157.25449321]
[1741633319597,0.03,116.99,116.98,233.57501442]
[1741633319999,226.66,117.05,117.04,2.0]
[1741633320381,226.66,117.05,117.04,78.32052121]
[1741633320693,226.66,117.05,117.02,78.32052121]
[1741633320880,226.66,117.05,117.03,2.0]
[1741633321073,76.32052121,117.18,117.07,20.0]
[1741633321278,24.83647688,117.22,117.07,20.0]
[1741633321279,228.16141506,117.17,117.12,78.32052121]
[1741633321473,226.56,117.16,117.12,2.0]
[1741633321697,226.56,117.16,117.11,78.32052121]
[1741633321698,302.88052121,117.16,117.11,78.32052121]
[1741633321911,302.88052121,117.16,117.13,2.0]
[1741633322205,302.88052121,117.16,117.15,2.0]
[1741633322206,226.56,117.16,117.15,2.0]
[1741633322409,226.56,117.16,117.11,2.0]
[1741633322586,76.32052121,117.14,117.09,78.32052121]
[1741633322784,76.32052121,117.12,117.08,2.0]
[1741633323010,77.92197755,117.11,117.07,2.0]
[1741633323185,76.32052121,117.11,117.06,2.0]
[1741633323383,76.32052121,117.11,117.06,78.32052121]
[1741633323704,226.70216157,117.16,117.06,78.32052121]
[1741633323705,226.56,117.16,117.1,76.32052121]
[1741633323909,226.56,117.16,117.15,2.0]
[1741633324109,226.56,117.16,117.15,78.32052121]
[1741633324316,226.56,117.16,117.11,2.0]
[1741633324502,76.32052121,117.12,117.07,2.0]
[1741633324680,0.28432314,117.14,117.02,169.05084886]
[1741633324681,77.92215048,117.14,117.11,2.0]
[1741633324882,76.32052121,117.12,117.06,76.32052121]
[1741633325083,76.32052121,117.07,117.0,2.0]
[1741633325282,76.32052121,117.03,116.97,2.0]
[1741633325498,1.60283572,117.05,116.97,2.0]
[1741633325689,226.44,117.06,117.03,76.32052121]
[1741633325888,226.44,117.06,117.02,2.0]
[1741633326111,226.44,117.06,117.05,78.32052121]
[1741633326409,3.4127,117.21,117.05,78.32052121]
[1741633326410,226.44,117.13,117.07,2.0]
[1741633326590,226.44,117.13,117.08,2.0]
[1741633326791,226.44,117.13,117.1,2.0]
[1741633327209,226.44,117.13,117.12,2.0]
[1741633327511,226.44,117.13,117.12,154.64104242]
[1741633327710,6.2453,117.28,117.19,2.0]
[1741633327711,226.42,117.22,117.19,2.0]
[1741633327915,226.42,117.22,117.21,78.32052121]
[1741633328121,226.42,117.22,117.2,2.0]
[1741633328420,0.03,117.28,117.21,2.0]
[1741633328608,0.03,117.28,117.27,2.0]
[1741633328911,0.03,117.28,117.27,78.32052121]
[1741633329499,0.21443586,117.28,117.27,78.32052121]
[1741633329691,0.21443586,117.28,117.27,76.32052121]
[1741633329894,0.21443586,117.28,117.24,78.32052121]
[1741633329895,20.0,117.25,117.2,78.32052121]
[1741633330194,1.59978472,117.24,117.21,2.0]
[1741633330506,0.21443586,117.28,117.26,2.0]
[1741633330702,0.21443586,117.28,117.27,76.32052121]
[1741633331111,0.21443586,117.28,117.27,78.32052121]
[1741633331418,0.21443586,117.28,117.27,76.32052121]
[1741633331592,0.21443586,117.28,117.26,2.0]
[1741633331908,0.21443586,117.28,117.27,76.32052121]
[1741633332210,0.21443586,117.28,117.27,78.32052121]
[1741633332725,0.21443586,117.28,117.24,2.2372]
[1741633332891,1.81376584,117.28,117.24,76.32052121]
[1741633333096,20.0,117.24,117.2,2.0]
[1741633333297,1.59970654,117.23,117.18,2.0]
[1741633333492,1.60024529,117.26,117.22,2.0]
[1741633333708,0.21443586,117.28,117.24,2.0]
[1741633334006,0.498759,117.28,117.22,2.0]
[1741633334206,18.64964886,117.26,117.19,2.0]
[1741633334409,20.0,117.19,117.15,2.0]
[1741633334602,246.14,117.19,117.16,76.32052121]
[1741633334802,226.14,117.19,117.18,76.32052121]
[1741633335123,226.14,117.19,117.18,78.32052121]
[1741633335503,226.14,117.19,117.18,76.32052121]
[1741633335718,226.14,117.19,117.11,10.5388]
[1741633335915,226.14,117.19,117.15,76.32052121]
[1741633336115,20.0,117.16,117.13,76.32052121]
[1741633336330,20.0,117.14,117.11,76.32052121]
[1741633336618,20.0,117.09,117.05,76.32052121]
[1741633336933,20.0,117.09,117.03,78.32052121]
[1741633336934,227.7219888,117.08,117.03,78.32052121]
[1741633337236,0.14216157,117.14,117.04,2.0]
[1741633337396,226.12,117.09,117.0,10.5469]
[1741633337596,227.72208049,117.08,117.03,2.0]
[1741633337795,227.72208049,117.08,117.0,2.0]
[1741633337796,20.0,117.05,117.0,2.0]
[1741633338104,226.12,117.08,116.98,26.35624866]
[1741633338105,20.0,116.99,116.98,26.35624866]
[1741633338423,324.0435971,116.99,116.98,26.35624866]
[1741633338625,322.44052121,116.99,116.98,26.35624866]
[1741633338830,341.23233164,116.99,116.98,26.35624866]
[1741633339120,18.79181043,116.98,116.92,2.0]
[1741633339320,20.0,116.95,116.92,78.32052121]
[1741633339626,20.0,116.94,116.9,76.32052121]
[1741633339918,20.0,116.91,116.88,76.32052121]
[1741633340100,226.24,116.91,116.9,78.32052121]
[1741633340796,226.24,116.91,116.9,2.0]
[1741633340995,226.24,116.91,116.88,78.32052121]
[1741633341195,226.24,116.91,116.9,78.32052121]
[1741633341395,226.24,116.91,116.89,2.0]
[1741633341609,226.24,116.91,116.87,0.063]
[1741633342194,1.60429693,116.9,116.87,0.063]
[1741633342405,77.92504489,116.9,116.87,0.063]
[1741633342610,76.32052121,116.88,116.87,0.063]
[1741633342833,78.20988679,116.88,116.87,0.063]
[1741633343017,20.0,116.85,116.8,0.063]
[1741633343202,76.32052121,116.83,116.8,0.063]
[1741633343516,44.87077688,116.98,116.8,0.063]
[1741633343517,226.32,116.82,116.8,0.063]
[1741633343721,304.24610311,116.81,116.8,0.063]
[1741633343908,321.57449321,116.81,116.8,0.063]
[1741633344324,302.64052121,116.81,116.8,0.063]
[1741633344631,302.92484435,116.81,116.8,0.063]
[1741633344832,321.57449321,116.81,116.8,0.063]
[1741633345010,0.28432314,116.8,116.72,2.0]
[1741633345210,76.32052121,116.76,116.72,2.0]
[1741633345422,1.6064186,116.79,116.76,2.0]
[1741633345607,0.28432314,116.79,116.71,62.063]
[1741633345817,0.28432314,116.77,116.71,0.063]
[1741633346025,1.60676508,116.77,116.74,2.0]
[1741633346228,1.60635697,116.79,116.75,2.0]
[1741633346426,226.32,116.81,116.77,78.32052121]
[1741633347117,124.55317679,116.9,116.77,78.32052121]
[1741633347118,81.8,116.95,116.84,2.0]
[1741633347325,76.32052121,116.92,116.87,2.0]
[1741633347545,1.60448844,116.92,116.88,76.32052121]
[1741633347732,1.60448844,116.92,116.87,78.32052121]
[1741633347935,77.92483879,116.93,116.88,2.0]
[1741633348236,226.46,116.94,116.93,2.0]
[1741633349019,226.46,116.94,116.93,78.32052121]
[1741633349354,20.0,116.91,116.87,2.0]
[1741633349650,76.32052121,116.88,116.81,78.32052121]
[1741633349816,77.92554715,116.87,116.85,2.0]
[1741633350026,21.60522273,116.89,116.85,2.0]
[1741633350220,76.32052121,116.91,116.88,2.0]
[1741633350439,20.0,116.91,116.87,2.0]
[1741633350647,96.32052121,116.89,116.87,0.063]
[1741633350940,1.60486374,116.91,116.88,2.0]
[1741633351329,77.92492555,116.92,116.87,2.063]
[1741633351512,21.6046192,116.91,116.87,2.063]
[1741633351713,76.32052121,116.89,116.87,0.063]
[1741633351918,1.60483393,116.89,116.87,0.063]
[1741633352121,1.60465981,116.93,116.89,2.0]
[1741633352320,226.62564634,116.94,116.93,2.0]
[1741633352525,0.16564634,116.94,116.93,78.32052121]
[1741633353034,0.16564634,116.94,116.93,182.12711442]
[1741633353237,0.16564634,116.94,116.93,2.0]
[1741633353622,0.16564634,116.94,116.93,78.32052121]
[1741633353828,0.16564634,116.94,116.93,105.52227007]
[1741633354024,0.16564634,116.94,116.93,105.80659321]
[1741633354240,0.16564634,116.94,116.93,78.32052121]
[1741633354542,0.16564634,116.94,116.9,78.32052121]
[1741633354739,0.16564634,116.94,116.92,2.0]
[1741633355040,0.16564634,116.94,116.93,78.32052121]
[1741633355232,0.16564634,116.94,116.93,96.97017007]
[1741633355419,0.16564634,116.94,116.93,78.32052121]
[1741633357139,0.16564634,116.94,116.93,2.0]
[1741633357345,0.16564634,116.94,116.89,2.0]
[1741633357528,0.16564634,116.94,116.92,76.32052121]
[1741633357724,0.16564634,116.94,116.93,96.97017007]
[1741633358027,0.17881474,116.97,116.96,20.933972]
[1741633358244,226.56,117.06,116.99,40.933972]
[1741633358434,226.56,117.06,117.0,2.28432314]
[1741633358632,226.56,117.06,117.0,173.57501442]
[1741633361636,77.92479162,116.9,116.87,0.063]
[1741633361826,1.60427041,116.9,116.88,2.0]
[1741633362051,1.60427041,116.9,116.87,0.063]
[1741633362052,76.32052121,116.89,116.87,0.063]
[1741633362233,116.85941687,116.88,116.87,0.063]
[1741633362547,21.60492366,116.88,116.87,0.063]
[1741633362888,96.32052121,116.88,116.87,0.063]
[1741633363158,1.60470562,116.89,116.87,0.063]
[1741633363324,226.5,116.91,116.87,76.38352121]
[1741633363528,226.5,116.91,116.87,78.38352121]
[1741633363726,226.5,116.91,116.87,0.063]
[1741633363951,226.5,116.91,116.89,2.0]
[1741633364256,226.5,116.91,116.9,78.32052121]
[1741633364825,226.5,116.91,116.9,138.60484435]
[1741633365031,226.5,116.91,116.9,138.32052121]
[1741633365331,226.5,116.91,116.9,2.0]
[1741633365536,226.5,116.91,116.87,0.063]
[1741633365728,76.32052121,116.89,116.87,0.063]
[1741633365929,302.82052121,116.91,116.87,0.063]
[1741633366152,76.32052121,116.89,116.87,0.063]
[1741633366332,1.60478686,116.88,116.87,0.063]
[1741633366536,96.60484435,116.88,116.87,0.063]
[1741633366753,0.28432314,116.87,116.8,0.063]
[1741633367052,76.32052121,116.83,116.81,2.0]
[1741633367230,1.60556391,116.86,116.81,2.0]
[1741633367231,226.54,116.82,116.81,2.0]
[1741633367653,226.54,116.82,116.81,78.32052121]
[1741633367865,226.54,116.88,116.82,0.28432314]
[1741633368136,226.54,116.88,116.85,2.0]
[1741633368351,226.54,116.88,116.86,2.0]
[1741633368549,226.54,116.88,116.8,8.6244]
[1741633368550,226.54,116.88,116.87,2.0]
[1741633368937,226.54,116.88,116.87,10.5565]
[1741633369344,226.58,116.95,116.91,2.0]
[1741633369558,0.17645122,116.92,116.91,2.0]
[1741633369741,0.17645122,116.92,116.91,78.32052121]
[1741633370257,0.17645122,116.92,116.91,2.0]
[1741633370556,21.7803334,116.92,116.91,2.0]
[1741633370729,20.17645122,116.92,116.91,2.0]
[1741633371352,20.17645122,116.92,116.9,2.0]
[1741633371636,0.17645122,116.92,116.91,2.0]
[1741633371852,0.17645122,116.92,116.91,78.32052121]
[1741633372161,0.17645122,116.92,116.89,8.5549]
[1741633372162,0.17645122,116.92,116.89,76.32052121]
[1741633372331,20.17645122,116.92,116.9,2.0]
[1741633372536,0.17645122,116.92,116.91,78.32052121]
[1741633372757,0.17645122,116.92,116.91,86.87402121]
[1741633373140,0.17645122,116.92,116.91,78.32052121]
[1741633373458,20.17645122,116.92,116.88,2.0]
[1741633373661,78.10100622,116.92,116.88,2.0]
[1741633373842,76.32052121,116.91,116.86,78.32052121]
[1741633374163,0.17645122,116.92,116.91,2.0]
[1741633374463,0.17645122,116.92,116.91,78.32052121]
[1741633374680,20.0,116.9,116.86,2.0]
[1741633374958,20.0,116.85,116.8,5.0348]
[1741633375162,226.58,116.84,116.8,2.063]
[1741633375351,226.58,116.84,116.83,2.0]
[1741633375754,226.58,116.84,116.82,2.0]
[1741633375966,226.58,116.84,116.83,2.0]
[1741633376258,226.58,116.84,116.83,78.32052121]
[1741633376662,226.58,116.84,116.83,2.0]
[1741633377043,226.58,116.84,116.83,78.32052121]
[1741633377238,226.58,116.84,116.81,78.32052121]
[1741633377445,226.58,116.84,116.8,76.38352121]
[1741633377663,20.0,116.81,116.8,0.063]
[1741633378054,38.64964886,116.81,116.8,0.063]
[1741633378356,116.86039431,116.81,116.8,0.063]
[1741633378751,20.0,116.77,116.75,0.063]
[1741633379069,18.933972,116.8,116.75,0.063]
[1741633379070,20.0,116.76,116.75,0.063]
[1741633379864,1.60647666,116.77,116.75,0.063]
[1741633380168,40.54012347,116.76,116.75,0.063]
[1741633380346,20.54012347,116.76,116.71,0.063]
[1741633380549,38.933972,116.72,116.71,0.063]
[1741633380951,38.933972,116.69,116.68,0.063]
[1741633381252,159.44593718,116.69,116.59,0.063]
[1741633381451,76.32052121,116.6,116.59,0.063]
[1741633381763,20.0,116.57,116.5,2.0]
[1741633381964,20.0,116.52,116.5,2.0]
[1741633382268,1.6095394,116.54,116.53,2.0]
[1741633382477,1.60907274,116.59,116.58,2.0]
[1741633382656,226.72,116.6,116.59,2.0]
[1741633382853,226.72,116.6,116.59,10.577]
[1741633383370,303.04052121,116.66,116.62,2.0]
[1741633383666,20.0,116.6,116.55,2.0]
[1741633383971,77.92923686,116.59,116.54,2.0]
[1741633384146,20.0,116.6,116.58,2.0]
[1741633384346,1.60841076,116.64,116.62,2.0]
[1741633384543,226.82,116.65,116.64,2.0]
[1741633384956,226.82,116.65,116.64,78.32052121]
[1741633385167,226.82,116.65,116.64,86.89382121]
[1741633385385,226.82,116.65,116.64,78.32052121]
[1741633385553,226.82,116.65,116.64,86.89382121]
[1741633385873,226.82,116.65,116.64,2.0]
[1741633386052,226.82,116.72,116.71,2.0]
[1741633386256,226.82,116.72,116.69,78.32052121]
[1741633386460,20.0,116.7,116.69,2.0]
[1741633386661,226.82,116.72,116.71,2.0]
[1741633386859,226.82,116.72,116.71,78.32052121]
[1741633387260,226.82,116.72,116.7,2.0]
[1741633387569,0.03,116.65,116.62,2.0]
[1741633387747,77.95855488,116.65,116.59,78.38352121]
[1741633387948,20.0,116.63,116.6,2.0]
[1741633388147,38.64964886,116.6,116.59,0.063]
[1741633388368,40.54272501,116.6,116.59,0.063]
[1741633388571,38.64964886,116.6,116.59,2.063]
[1741633388771,21.60848464,116.6,116.59,0.063]
[1741633388970,97.92900585,116.6,116.59,0.063]
[1741633389172,226.9,116.62,116.61,2.0]
[1741633389375,20.0,116.6,116.59,0.063]
[1741633389674,227.0649674,116.62,116.61,2.0]
[1741633390783,227.0649674,116.62,116.61,78.32052121]
[1741633390982,227.0649674,116.62,116.61,86.89602121]
[1741633391190,0.18321626,116.63,116.62,2.28432314]
[1741633391356,1.626e-05,116.63,116.62,2.28432314]
[1741633391560,9.468e-05,116.64,116.63,2.28432314]
[1741633391761,7.075e-05,116.65,116.64,2.0]
[1741633392060,7.075e-05,116.65,116.64,78.32052121]
[1741633392480,7.075e-05,116.65,116.64,2.0]
[1741633392651,7.075e-05,116.65,116.64,78.32052121]
[1741633393065,7.075e-05,116.65,116.64,2.0]
[1741633393268,20.0,116.64,116.62,2.0]
[1741633393466,20.0,116.6,116.59,0.063]
[1741633393671,227.04,116.6,116.59,2.063]
[1741633393852,227.04,116.6,116.59,78.38352121]
[1741633394059,227.04,116.6,116.59,0.063]
[1741633394379,245.973972,116.6,116.59,0.063]
[1741633394575,322.29449321,116.6,116.59,0.063]
[1741633394768,322.01017007,116.6,116.59,0.063]
[1741633395087,227.04,116.6,116.59,2.063]
[1741633395578,227.04,116.6,116.59,78.38352121]
[1741633396282,227.04,116.6,116.59,78.52568278]
[1741633396891,7.075e-05,116.65,116.64,10.5733]
[1741633396892,227.10007075,116.65,116.64,10.5733]
[1741633397060,227.10007075,116.65,116.64,78.32052121]
[1741633397261,227.10007075,116.65,116.62,2.0]
[1741633397458,1.60793229,116.64,116.61,2.0]
[1741633397690,227.10007075,116.65,116.64,2.0]
[1741633397862,227.10007075,116.65,116.61,78.32052121]
[1741633398172,227.10007075,116.65,116.62,2.0]
[1741633398375,227.10007075,116.65,116.59,8.6399]
[1741633398376,20.0,116.63,116.61,2.0]
[1741633398590,1.60771674,116.64,116.59,76.38352121]
[1741633398765,77.92823795,116.64,116.59,76.38352121]
[1741633398966,0.03,116.6,116.59,0.063]
[1741633399166,20.03,116.6,116.59,0.063]
[1741633399579,0.03,116.6,116.59,2.063]
[1741633399761,0.03,116.6,116.59,0.063]
[1741633399963,20.03,116.6,116.59,0.063]
[1741633400190,265.77964886,116.6,116.59,0.063]
[1741633400365,342.38449321,116.6,116.59,0.063]
[1741633401081,0.28432314,116.58,116.53,2.0]
[1741633401267,76.32052121,116.55,116.5,2.0]
[1741633401598,1.60961503,116.54,116.47,2.063]
[1741633401771,76.32052121,116.5,116.47,0.063]
[1741633402093,76.32052121,116.48,116.47,0.063]
[1741633402388,95.25449321,116.48,116.47,0.063]
[1741633402690,95.25449321,116.48,116.4,2.0]
[1741633402691,20.0,116.41,116.4,2.0]
[1741633402864,1.61129779,116.42,116.4,2.0]
[1741633403063,1.61124185,116.43,116.41,2.0]
[1741633403265,20.0,116.41,116.4,2.0]
[1741633403487,1.61101272,116.42,116.39,0.063]
[1741633403791,20.0,116.4,116.39,0.063]
[1741633403991,77.93191999,116.41,116.39,0.063]
[1741633404170,18.933972,116.4,116.39,0.063]
[1741633404367,77.93191999,116.41,116.39,0.063]
[1741633404569,1.61139878,116.41,116.39,0.063]
[1741633404777,21.61131432,116.42,116.39,76.38352121]
[1741633404976,227.32,116.43,116.42,2.0]
[1741633405275,227.32,116.43,116.4,2.0]
[1741633405474,1.61118717,116.42,116.39,0.063]
[1741633405868,227.32,116.43,116.4,78.32052121]
[1741633406070,227.32,116.43,116.39,76.38352121]
[1741633406273,227.32,116.43,116.39,0.063]
[1741633406492,1.61108115,116.42,116.39,0.063]
[1741633406704,227.32,116.43,116.39,76.38352121]
[1741633407012,227.32,116.43,116.42,78.32052121]
[1741633407372,227.32,116.43,116.4,76.32052121]
[1741633407373,227.32,116.43,116.41,2.0]
[1741633407577,227.32,116.43,116.42,2.0]
[1741633407776,227.32,116.43,116.42,78.32052121]
[1741633407994,227.32,116.43,116.41,78.32052121]
[1741633408185,227.32,116.43,116.39,78.38352121]
[1741633408504,20.0,116.4,116.39,0.063]
[1741633409574,0.15491373,116.4,116.39,78.38352121]
[1741633409776,0.15491373,116.4,116.39,0.063]
[1741633409777,115.1250838,116.4,116.39,0.063]
[1741633409993,21.76641128,116.4,116.39,0.063]
[1741633410278,0.15491373,116.4,116.39,2.063]
[1741633410482,0.18183273,116.42,116.41,2.28432314]
[1741633410682,0.16420508,116.44,116.43,8.6059]
[1741633410878,1.60967486,116.5,116.44,2.0]
[1741633411085,20.18032091,116.46,116.44,2.0]
[1741633411296,20.18032091,116.46,116.44,78.32052121]
[1741633411297,0.18032091,116.46,116.44,78.32052121]
[1741633411727,0.18032091,116.46,116.44,154.64104242]
[1741633412226,0.18032091,116.46,116.45,2.0]
[1741633412394,0.18032091,116.46,116.45,154.64104242]
[1741633412600,0.18710897,116.48,116.47,2.28432314]
[1741633412790,227.4,116.51,116.5,2.0]
[1741633413142,227.48,116.57,116.53,2.0]
[1741633413419,227.48,116.57,116.46,3.1051]
[1741633413420,20.0,116.53,116.51,2.0]
[1741633413587,1.6097504,116.53,116.52,2.0]
[1741633413794,21.6097504,116.53,116.48,78.32052121]
[1741633413993,76.32052121,116.52,116.46,2.0]
[1741633414188,20.0,116.5,116.47,78.32052121]
[1741633414403,20.0,116.5,116.48,2.0]
[1741633414624,1.61002555,116.49,116.45,2.0]
[1741633414831,18.79181043,116.54,116.47,78.32052121]
[1741633414832,227.4,116.48,116.47,78.32052121]
[1741633416016,227.4,116.48,116.47,10.5859]
[1741633416200,76.32052121,116.58,116.54,2.0]
[1741633416398,229.00918214,116.57,116.54,2.0]
[1741633416626,227.4,116.57,116.56,2.0]
[1741633416920,227.4,116.57,116.56,78.32052121]
[1741633417133,227.4,116.57,116.56,86.89972121]
[1741633417317,227.4,116.57,116.56,78.32052121]
[1741633417629,227.4,116.57,116.56,2.0]
[1741633417830,227.4,116.57,116.56,78.32052121]
[1741633418123,227.4,116.57,116.55,2.0]
[1741633418332,227.4,116.57,116.51,2.0]
[1741633418333,20.0,116.54,116.51,2.0]
[1741633418532,1.60893407,116.56,116.54,2.0]
[1741633418735,227.4,116.57,116.56,2.0]
[1741633418901,227.4,116.57,116.55,2.0]
[1741633419241,227.4,116.57,116.54,2.0]
[1741633419445,20.0,116.55,116.54,2.0]
[1741633419620,227.4,116.57,116.56,2.0]
[1741633419826,303.72052121,116.57,116.52,2.0]
[1741633420031,20.0,116.54,116.5,2.0]
[1741633420346,76.32052121,116.52,116.47,78.32052121]
[1741633420508,77.93048212,116.51,116.47,2.0]
[1741633420713,77.93048212,116.51,116.46,2.0]
[1741633420933,77.93048212,116.51,116.44,2.8969]
[1741633420934,20.0,116.46,116.44,76.32052121]
[1741633421135,227.38,116.45,116.44,2.0]
[1741633421412,227.38,116.45,116.44,78.32052121]
[1741633421938,227.38,116.45,116.42,2.063]
[1741633422350,1.61072602,116.44,116.42,0.063]
[1741633422507,96.32052121,116.43,116.42,0.063]
[1741633422708,1.61072602,116.44,116.42,0.063]
[1741633422910,77.93124723,116.44,116.42,0.063]
[1741633423224,95.25449321,116.43,116.42,0.063]
[1741633423433,38.933972,116.4,116.39,0.063]
[1741633423815,0.28432314,116.35,116.32,0.063]
[1741633424016,95.25449321,116.33,116.32,0.063]
[1741633424215,38.933972,116.31,116.3,0.063]
[1741633424518,38.64964886,116.27,116.19,2.0]
[1741633424727,76.32052121,116.21,116.16,2.0]
[1741633424932,227.42,116.2,116.1,84.93372121]
[1741633425137,227.42,116.19,116.16,76.32052121]
[1741633425454,227.42,116.22,116.17,2.14216157]
[1741633425645,227.6,116.25,116.17,18.933972]
[1741633425825,227.6,116.25,116.17,0.14216157]
[1741633426148,227.6,116.25,116.24,76.32052121]
[1741633426314,227.6,116.25,116.19,6.5777]
[1741633426514,227.6,116.25,116.2,76.32052121]
[1741633426757,303.92052121,116.25,116.19,82.89822121]
[1741633426946,77.93391023,116.24,116.13,6.0431]
[1741633427244,76.32052121,116.21,116.13,6.0431]
[1741633427416,21.61419383,116.22,116.18,76.32052121]
[1741633427616,21.61419383,116.22,116.13,6.0431]
[1741633427617,227.6,116.25,116.17,0.28432314]
[1741633427819,227.6,116.25,116.17,60.0]
[1741633428048,1.61342283,116.24,116.21,76.32052121]
[1741633428249,227.6,116.25,116.23,76.32052121]
[1741633428429,227.6,116.25,116.17,18.79181043]
[1741633428633,227.6,116.25,116.24,76.32052121]
[1741633429024,227.7,116.34,116.25,6.50722314]
[1741633429255,227.7,116.34,116.25,6.2229]
[1741633429461,1.61246193,116.33,116.29,76.32052121]
[1741633429618,0.18012925,116.3,116.28,76.32052121]
[1741633429822,0.18012925,116.3,116.25,66.2229]
[1741633430139,0.18012925,116.3,116.28,76.32052121]
[1741633430656,1.79258663,116.3,116.2,18.64964886]
[1741633430960,98.11310784,116.3,116.24,76.32052121]
[1741633431123,76.32052121,116.28,116.19,6.0412]
[1741633431328,1.61344151,116.29,116.19,14.6475]
[1741633431521,1.61344151,116.29,116.25,76.32052121]
[1741633431727,21.79306854,116.3,116.25,76.32052121]
[1741633431948,21.79306854,116.3,116.27,76.32052121]
[1741633431949,0.18012925,116.3,116.27,76.32052121]
[1741633432146,0.18012925,116.3,116.22,76.32052121]
[1741633432147,0.18012925,116.3,116.26,76.32052121]
[1741633432349,97.93348461,116.29,116.23,76.32052121]
[1741633432537,76.32052121,116.27,116.19,14.6477]
[1741633432739,76.32052121,116.28,116.23,76.32052121]
[1741633433042,21.6129634,116.29,116.24,76.32052121]
[1741633433243,76.32052121,116.27,116.19,6.0412]
[1741633433430,20.0,116.25,116.2,76.32052121]
[1741633433642,227.74,116.24,116.2,0.28432314]
[1741633433822,227.74,116.24,116.21,18.64964886]
[1741633434026,227.74,116.29,116.22,0.28432314]
[1741633434237,227.74,116.29,116.28,76.32052121]
[1741633434457,227.74,116.29,116.28,152.64104242]
[1741633436126,0.1728643,116.32,116.28,76.32052121]
[1741633436448,0.1728643,116.32,116.24,6.1039]
[1741633436449,78.10568421,116.32,116.27,76.32052121]
[1741633436753,20.0,116.29,116.25,76.32052121]
[1741633436923,97.9336122,116.29,116.24,76.32052121]
[1741633437122,97.9336122,116.29,116.21,8.6049]
[1741633437123,0.1728643,116.32,116.27,76.32052121]
[1741633437323,1.78552309,116.32,116.28,76.32052121]
[1741633437747,0.1728643,116.32,116.3,76.32052121]
[1741633438834,0.1728643,116.32,116.31,76.32052121]
[1741633439347,0.1728643,116.32,116.3,76.32052121]
[1741633439559,0.1728643,116.32,116.31,76.32052121]
[1741633439727,227.9728643,116.32,116.3,76.32052121]
[1741633439928,227.8,116.31,116.28,76.32052121]
[1741633440135,227.8,116.31,116.29,76.32052121]
[1741633440354,227.8,116.31,116.3,76.32052121]
[1741633440522,227.8,116.31,116.28,76.32052121]
[1741633440726,227.8,116.31,116.24,8.6027]
[1741633441050,227.8,116.31,116.3,76.32052121]
[1741633441252,227.8,116.31,116.3,136.32052121]
[1741633441458,227.8,116.31,116.3,144.91892121]
[1741633441625,227.8,116.31,116.24,124.9144]
[1741633441626,304.12052121,116.31,116.22,68.6041]
[1741633441828,227.8,116.31,116.22,90.115]
[1741633442063,227.8,116.31,116.28,76.32052121]
[1741633442357,227.8,116.31,116.23,18.933972]
[1741633442562,227.8,116.31,116.22,90.115]
[1741633442732,76.32052121,116.29,116.24,76.32052121]
[1741633442931,1.61262576,116.3,116.22,136.32052121]
[1741633442932,96.32052121,116.27,116.22,136.32052121]
[1741633443129,77.93389282,116.26,116.2,76.32052121]